bitfinex-derivatives/quotes_ETHF0:USTF0_20241020
["timestamp","ask_amount","ask_price","bid_price","bid_amount"]
[1729443908142,1.14317,2694.6,2694.4,0.37118]
[1729443909239,0.772,2694.6,2694.5,0.37118]
[1729443910846,0.772,2694.6,2694.5,0.37117]
[1729443911043,0.772,2694.6,2694.5,0.37118]
[1729443911541,0.772,2694.9,2694.8,0.37113]
[1729443911946,0.37112,2694.9,2694.7,0.37114]
[1729443912239,1.14312,2694.9,2694.8,0.4229]
[1729443912444,8.01715409,2695.2,2694.8,0.4229]
[1729443912645,0.37112,2695.0,2694.8,0.4229]
[1729443912845,0.37111,2695.0,2694.8,0.4229]
[1729443913048,0.37112,2694.9,2694.8,0.4229]
[1729443913447,1.14312,2694.9,2694.8,0.4229]
[1729443915145,1.14312,2694.9,2694.8,0.79404]
[1729443915146,0.772,2694.9,2694.8,0.79404]
[1729443915344,0.772,2694.9,2694.8,0.4229]
[1729443915538,0.772,2694.9,2694.8,0.79404]
[1729443915956,0.772,2694.9,2694.8,0.4229]
[1729443916556,1.14312,2694.9,2694.8,0.4229]
[1729443918945,0.772,2694.9,2694.8,0.4229]
[1729443919153,1.14312,2694.9,2694.8,0.4229]
[1729443921157,0.37114,2694.8,2694.7,0.3925]
[1729443922156,0.772,2694.9,2694.7,0.3925]
[1729443922460,1.14313,2694.9,2694.7,0.3925]
[1729443923064,0.772,2694.9,2694.7,0.3925]
[1729443923270,0.37114,2694.8,2694.7,0.3925]
[1729443923872,0.772,2694.9,2694.5,3.2078]
[1729443924173,0.37116,2694.6,2694.5,3.2078]
[1729443928460,0.37118,2694.5,2694.4,0.8238]
[1729443929770,3.26919687,2694.5,2694.4,0.8238]
[1729443930379,4.04119687,2694.5,2694.4,0.8238]
[1729443930871,0.37119,2694.4,2694.3,3.2078]
[1729443931073,3.27754569,2694.4,2694.3,3.2078]
[1729443931873,2.90635569,2694.4,2694.3,3.2078]
[1729443932064,5.0653225,2694.8,2694.4,0.37119]
[1729443932065,3.27753569,2694.5,2694.4,0.37119]
[1729443932265,0.37118,2694.5,2694.4,0.37119]
[1729443932464,2.90635569,2694.5,2694.4,0.37119]
[1729443932664,0.37118,2694.5,2694.4,0.37119]
[1729443932865,2.90635569,2694.6,2694.4,0.37119]
[1729443933067,0.37118,2694.5,2694.4,0.37119]
[1729443933262,3.27753569,2694.5,2694.4,0.37119]
[1729443933670,2.90635569,2694.5,2694.4,0.37119]
[1729443933975,4.52988641,2694.7,2694.5,0.37118]
[1729443933976,2.90635569,2694.6,2694.5,0.37118]
[1729443935170,3.67835569,2694.7,2694.6,0.37116]
[1729443935370,4.04950569,2694.7,2694.6,0.37116]
[1729443935567,4.04950569,2694.7,2694.5,0.37117]
[1729443935876,4.04950569,2694.7,2694.6,0.4191]
[1729443936074,3.67835569,2694.7,2694.6,0.79026]
[1729443936272,2.90635569,2694.7,2694.6,3.99806]
[1729443936475,3.67835569,2694.8,2694.7,0.37115]
[1729443936666,3.67835569,2694.8,2694.7,0.78705]
[1729443936873,0.772,2694.8,2694.7,1.76170453]
[1729443938479,1.14312,2694.9,2694.7,1.76170453]
[1729443938672,0.772,2694.9,2694.7,0.4159]
[1729443938874,0.37114,2694.8,2694.7,0.4159]
[1729443939263,1.14313,2694.9,2694.7,0.4159]
[1729443939876,0.37114,2694.8,2694.7,0.4159]
[1729443940177,0.772,2694.9,2694.7,0.4159]
[1729443940368,1.14313,2694.9,2694.7,0.4159]
[1729443940862,1.14313,2694.9,2694.7,0.78705]
[1729443941275,0.772,2694.9,2694.7,0.78705]
[1729443941483,1.14313,2694.9,2694.7,0.78705]
[1729443941977,1.14312,2694.9,2694.7,0.78705]
[1729443942173,1.14313,2694.9,2694.7,0.78705]
[1729443942873,0.772,2694.9,2694.7,0.78705]
[1729443943073,1.14313,2694.9,2694.7,0.4159]
[1729443943275,0.37114,2694.8,2694.7,0.4159]
[1729443943677,0.77624,2694.8,2694.7,0.4159]
[1729443943971,0.4051,2694.8,2694.7,0.4159]
[1729443944176,0.77624,2694.8,2694.7,0.4159]
[1729443945489,0.4051,2694.8,2694.7,0.4159]
[1729443945984,0.37115,2694.7,2694.6,0.4191]
[1729443946174,3.27810874,2694.7,2694.6,0.4191]
[1729443947179,3.7112,2694.7,2694.0,3.2078]
[1729443947485,3.27826093,2694.4,2694.2,0.76501]
[1729443947682,4.05026093,2694.4,2694.2,0.76501]
[1729443948579,0.3712,2694.3,2694.2,0.3938]
[1729443949473,4.05027093,2694.4,2694.2,0.76502]
[1729443949778,2.90707093,2694.4,2694.3,0.3712]
[1729443949975,2.90707093,2694.6,2694.5,0.37118]
[1729443950289,4.16358276,2694.7,2694.6,0.37116]
[1729443950290,3.67907093,2694.7,2694.6,0.37116]
[1729443951775,3.67907093,2694.7,2694.6,1.34581453]
[1729443951976,0.772,2694.7,2694.6,1.34581453]
[1729443952278,0.772,2694.7,2694.6,2.55171453]
[1729443953680,0.772,2694.7,2694.6,2.18055453]
[1729443953881,1.14315,2694.8,2694.6,2.55171453]
[1729443958078,1.14315,2694.8,2694.6,2.18055453]
[1729443958994,2.90707093,2694.7,2694.6,1.2059]
[1729443959190,2.90707093,2694.7,2694.6,1.6702467]
[1729443959788,2.90707093,2694.7,2694.6,1.57706]
[1729443959982,2.90707093,2694.7,2694.6,1.2059]
[1729443960185,2.90707093,2694.7,2694.6,1.57706]
[1729443961186,2.90707093,2694.7,2694.6,1.2059]
[1729443961386,3.27822093,2694.7,2694.6,1.2059]
[1729443961595,2.90707093,2694.7,2694.6,1.2059]
[1729443961796,2.90707093,2694.7,2694.6,1.57706]
[1729443963297,2.90707093,2694.8,2694.6,1.2059]
[1729443963590,2.90707093,2694.8,2694.7,0.37115]
[1729443964001,2.90707093,2694.8,2694.6,1.2059]
[1729443964391,2.90707093,2694.8,2694.7,0.37115]
[1729443964795,2.90707093,2694.8,2694.6,1.2059]
[1729443965094,2.90707093,2694.8,2694.6,1.57706]
[1729443965598,3.27821093,2694.8,2694.6,1.57706]
[1729443966392,2.90707093,2694.8,2694.6,1.2059]
[1729443966596,2.90707093,2694.8,2694.7,0.37115]
[1729443966992,1.14313,2694.9,2694.6,1.2059]
[1729443966993,1.14313,2694.9,2694.6,2.55171453]
[1729443967694,0.37114,2694.8,2694.6,2.55171453]
[1729443968499,1.14313,2694.9,2694.7,0.37115]
[1729443968689,0.772,2694.9,2694.6,2.55170453]
[1729443968891,0.37114,2694.8,2694.6,2.55170453]
[1729443969091,1.14313,2694.9,2694.6,2.55170453]
[1729443969497,1.14312,2694.9,2694.7,0.37114]
[1729443969894,1.14312,2694.9,2694.6,2.55171453]
[1729443970192,1.14312,2694.9,2694.6,2.18055453]
[1729443970394,0.772,2694.9,2694.7,0.37114]
[1729443970698,1.14313,2694.9,2694.7,0.37114]
[1729443970900,1.14313,2694.9,2694.6,2.55171453]
[1729443971096,0.37114,2694.8,2694.6,2.55171453]
[1729443971290,1.14313,2694.9,2694.6,2.55171453]
[1729443971700,1.14313,2694.9,2694.6,2.18055453]
[1729443971893,1.14313,2694.9,2694.7,0.37115]
[1729443972291,0.37113,2694.9,2694.7,0.37115]
[1729443972602,1.14311,2695.0,2694.8,0.37113]
[1729443972999,1.14311,2695.0,2694.9,0.4171]
[1729443973398,0.772,2695.0,2694.9,0.4171]
[1729443973604,1.14311,2695.0,2694.9,0.4171]
[1729443973797,3.2078,2695.2,2694.9,0.4171]
[1729443973996,1.1431,2695.1,2695.0,0.8072]
[1729443974196,0.772,2695.1,2695.0,0.8072]
[1729443974900,0.772,2695.1,2695.0,1.17831]
[1729443975200,0.772,2695.1,2695.0,0.8072]
[1729443975803,3.2078,2695.2,2695.0,1.1783]
[1729443976004,0.772,2695.2,2695.1,0.37109]
[1729443976199,0.772,2695.3,2695.1,0.37109]
[1729443976400,1.14307,2695.3,2695.0,1.1783]
[1729443976700,1.14307,2695.3,2695.0,0.8072]
[1729443976997,1.14307,2695.3,2695.1,0.37109]
[1729443977390,1.14307,2695.3,2695.2,0.3881]
[1729443981106,0.772,2695.3,2695.2,0.3881]
[1729443981493,0.79453,2695.6,2695.2,0.3881]
[1729443981700,0.772,2695.5,2695.3,0.37106]
[1729443981895,0.772,2695.5,2695.4,0.4072]
[1729443981896,3.67907093,2695.5,2695.4,0.4072]
[1729443982094,0.37103,2695.6,2695.5,0.37104]
[1729443982095,2.90707093,2695.6,2695.5,0.37104]
[1729443982395,2.90707093,2695.7,2695.5,0.37104]
[1729443982592,2.90707093,2695.7,2695.5,0.78494]
[1729443983505,3.27808093,2695.8,2695.5,0.78494]
[1729443984504,0.37101,2695.8,2695.5,0.78494]
[1729443985016,0.37101,2695.8,2695.6,0.37102]
[1729443985210,0.772,2695.7,2695.5,0.78493]
[1729443986905,0.37101,2695.8,2695.6,0.37102]
[1729443986906,0.772,2695.8,2695.6,0.37102]
[1729443987410,1.143,2695.8,2695.5,0.78493]
[1729443987811,0.772,2695.8,2695.7,0.37101]
[1729443988005,2.90707093,2696.0,2695.5,3.6217]
[1729443988320,0.772,2695.9,2695.5,3.6217]
[1729443988611,0.772,2695.9,2695.6,0.37103]
[1729443988809,0.772,2695.9,2695.7,0.371]
[1729443989009,0.37098,2696.0,2695.8,0.4062]
[1729443989208,0.772,2695.9,2695.8,0.8225]
[1729443989406,1.14298,2695.9,2695.8,1.2231]
[1729443989717,0.772,2695.9,2695.8,1.2231]
[1729443990105,0.37098,2696.0,2695.8,1.2231]
[1729443990315,0.3948,2696.4,2695.8,1.2231]
[1729443990316,3.2078,2696.4,2695.8,1.2231]
[1729443990510,0.37094,2696.3,2696.0,0.37097]
[1729443990916,0.37094,2696.3,2696.1,0.4163]
[1729443991113,1.1788,2696.5,2696.1,0.4163]
[1729443991410,0.37094,2696.2,2696.1,0.4163]
[1729443991809,1.1788,2696.5,2696.1,0.4163]
[1729443991810,0.37093,2696.3,2696.1,0.4163]
[1729443992516,0.37094,2696.2,2696.1,0.4163]
[1729443992810,1.14292,2696.4,2696.1,0.78726]
[1729443993114,0.37092,2696.4,2696.2,0.387]
[1729443993311,0.772,2696.4,2696.2,0.8102]
[1729443994212,1.54971,2696.5,2696.2,1.18114]
[1729443995008,1.14291,2696.5,2696.2,1.18114]
[1729443995421,0.772,2696.5,2696.2,0.8102]
[1729443995614,2.11226069,2696.6,2696.3,0.37092]
[1729443996212,0.37091,2696.5,2696.2,1.18113]
[1729443996817,0.92286069,2696.6,2696.3,0.37093]
[1729443997014,4.23103162,2696.6,2696.2,0.8102]
[1729443997214,4.23103162,2696.6,2696.2,1.18113]
[1729443997215,0.3709,2696.5,2696.2,1.18113]
[1729443997715,4.60192162,2696.6,2696.3,0.37092]
[1729443998218,4.23103162,2696.6,2696.2,0.8102]
[1729443998420,0.3709,2696.5,2696.2,1.18113]
[1729443998814,4.60193162,2696.6,2696.3,0.37093]
[1729443999226,0.92286069,2696.6,2696.3,0.37093]
[1729443999723,0.3709,2696.5,2696.2,1.18114]
[1729444000025,4.08047093,2696.7,2696.2,0.8102]
[1729444000212,0.3709,2696.6,2696.3,0.37093]
[1729444000816,0.3709,2696.6,2696.2,0.8102]
[1729444000817,0.3709,2696.5,2696.4,0.4101]
[1729444001419,1.1734,2696.7,2696.4,0.4101]
[1729444001728,0.37089,2696.6,2696.4,0.4101]
[1729444001918,0.3709,2696.6,2696.4,0.4101]
[1729444002723,1.72194042,2696.7,2696.4,0.4101]
[1729444003120,0.3709,2696.6,2696.4,0.4101]
[1729444003825,1.72194042,2696.7,2696.4,0.4101]
[1729444004021,0.3709,2696.6,2696.4,0.4101]
[1729444004822,1.72194042,2696.7,2696.4,0.4101]
[1729444004823,0.3709,2696.5,2696.4,0.4101]
[1729444006228,0.37092,2696.4,2696.2,1.2333]
[1729444006529,0.77133,2696.4,2696.2,1.2333]
[1729444006929,0.4004,2696.4,2696.2,0.387]
[1729444007226,0.37096,2696.1,2695.9,0.37098]
[1729444007422,0.37096,2696.1,2695.8,1.2075]
[1729444007623,0.37096,2696.1,2695.9,0.37098]
[1729444009029,0.37098,2696.0,2695.8,1.57849]
[1729444009232,0.4004,2696.4,2695.8,1.2075]
[1729444009431,0.37097,2696.1,2695.9,0.37098]
[1729444009933,0.37097,2696.0,2695.9,0.37098]
[1729444010634,0.37097,2696.1,2695.9,0.37098]
[1729444011542,0.37098,2696.0,2695.8,1.57849]
[1729444012442,0.37098,2696.0,2695.9,0.37098]
[1729444013333,0.771,2696.3,2695.8,1.2075]
[1729444013529,0.37098,2696.0,2695.8,1.57849]
[1729444014137,0.37098,2696.0,2695.9,0.37098]
[1729444015927,0.771,2696.3,2695.8,1.2075]
[1729444015928,0.37098,2695.9,2695.8,1.2075]
[1729444016124,0.37098,2695.9,2695.8,0.4025]
[1729444016430,0.37103,2695.6,2695.5,0.37103]
[1729444016833,1.74293,2696.1,2695.5,0.37103]
[1729444017132,0.37102,2695.7,2695.6,0.3816]
[1729444017640,0.37102,2695.7,2695.6,0.75263]
[1729444018338,0.37102,2695.7,2695.6,0.3816]
[1729444018722,0.37102,2695.7,2695.6,0.7684]
[1729444018937,0.37102,2695.7,2695.6,1.13943]
[1729444019140,0.37102,2695.7,2695.6,0.7684]
[1729444019431,0.37102,2695.7,2695.6,0.3868]
[1729444019937,0.79292,2695.7,2695.6,0.3868]
[1729444022038,0.37102,2695.7,2695.6,0.3868]
[1729444023744,4.07557093,2695.8,2695.4,0.3955]
[1729444024040,0.37104,2695.5,2695.4,0.3955]
[1729444031941,0.4111,2695.7,2695.3,0.3857]
[1729444032247,0.77665,2695.4,2695.3,0.3857]
[1729444032445,0.37107,2695.3,2695.2,3.2078]
[1729444035641,0.37107,2695.3,2694.9,4.75901]
[1729444035642,0.3711,2695.1,2694.9,4.75901]
[1729444035844,0.771,2695.3,2694.9,4.75901]
[1729444035845,0.37111,2695.0,2694.9,4.75901]
[1729444036051,0.771,2695.3,2694.9,4.75901]
[1729444036441,0.37111,2695.0,2694.9,4.3879]
[1729444036640,0.3711,2695.1,2694.9,4.75901]
[1729444036940,0.37111,2695.0,2694.9,4.75901]
[1729444037548,0.37111,2695.1,2694.9,4.75901]
[1729444037749,0.771,2695.3,2694.9,4.75901]
[1729444037934,0.37111,2695.0,2694.9,4.75901]
[1729444039856,0.37111,2695.0,2694.9,1.55121]
[1729444041745,0.37105,2695.5,2695.4,0.37105]
[1729444042448,3.2078,2696.0,2695.4,0.828]
[1729444042750,0.37103,2695.6,2695.5,0.37104]
[1729444043350,0.771,2695.9,2695.5,0.37104]
[1729444043549,0.37102,2695.7,2695.5,0.37104]
[1729444043753,0.771,2695.9,2695.5,0.37104]
[1729444043959,0.37103,2695.7,2695.5,0.37104]
[1729444044451,0.771,2695.9,2695.5,0.37104]
[1729444044656,0.37102,2695.7,2695.5,0.37104]
[1729444045151,4.18,2696.8,2695.7,0.92752]
[1729444045352,3.2078,2696.9,2696.2,3.2078]
[1729444045649,3.2078,2696.9,2696.3,0.3922]
[1729444045650,0.37091,2696.5,2696.3,0.3922]
[1729444045850,0.3709,2696.5,2696.3,1.17692]
[1729444046058,0.37089,2696.6,2696.3,0.806]
[1729444046249,0.37089,2696.6,2696.3,1.17693]
[1729444046854,1.1735,2696.8,2696.3,1.17693]
[1729444047048,0.37088,2696.7,2696.3,1.17693]
[1729444047248,0.37089,2696.6,2696.3,1.17693]
[1729444047457,1.1735,2696.8,2696.3,1.17693]
[1729444047654,0.37088,2696.7,2696.4,0.37091]
[1729444047950,1.1735,2696.8,2696.3,1.17692]
[1729444048249,0.37088,2696.7,2696.3,0.806]
[1729444048552,1.1735,2696.8,2696.3,0.806]
[1729444048759,0.37089,2696.6,2696.3,1.17692]
[1729444049152,0.37088,2696.7,2696.4,0.37091]
[1729444049446,0.4025,2696.8,2696.4,0.37091]
[1729444049649,1.1735,2696.8,2696.3,0.806]
[1729444049846,0.37088,2696.7,2696.4,0.37092]
[1729444050247,1.1735,2696.8,2696.3,0.806]
[1729444050557,1.1735,2696.8,2696.3,0.3922]
[1729444050755,0.37092,2696.4,2696.3,0.3922]
[1729444050949,0.37093,2696.3,2696.2,3.2078]
[1729444051345,0.37093,2696.3,2695.6,0.4101]
[1729444051346,4.4798,2696.3,2695.6,3.6179]
[1729444051657,0.37096,2696.1,2695.7,0.37101]
[1729444052057,0.37098,2696.0,2695.7,0.37101]
[1729444054558,0.37097,2696.0,2695.7,0.37101]
[1729444054859,0.37097,2696.0,2695.8,0.371]
[1729444055453,0.8212,2696.2,2695.8,0.371]
[1729444055654,0.37097,2696.1,2695.8,0.371]
[1729444055854,0.771,2696.0,2695.8,0.371]
[1729444056562,0.37097,2696.1,2695.8,0.371]
[1729444057262,0.37097,2696.0,2695.8,0.371]
[1729444057755,0.37096,2696.1,2695.8,0.371]
[1729444058553,0.37096,2696.1,2695.7,0.3876]
[1729444058554,0.37096,2696.1,2695.7,0.7586]
[1729444059359,0.37096,2696.1,2695.8,0.371]
[1729444059864,0.771,2696.0,2695.8,0.371]
[1729444061565,0.4207,2696.2,2695.7,0.3876]
[1729444061865,0.771,2696.2,2695.9,3.2078]
[1729444062166,1.14194,2696.2,2696.0,0.37096]
[1729444062365,0.771,2696.2,2696.0,0.37096]
[1729444063154,0.771,2696.2,2695.9,3.2078]
[1729444063655,0.771,2696.2,2696.1,0.37096]
[1729444064053,0.771,2696.2,2696.0,0.3976]
[1729444064252,0.771,2696.2,2696.1,0.3913]
[1729444064653,1.14194,2696.2,2696.1,0.3913]
[1729444064860,0.771,2696.2,2696.1,0.3913]
[1729444065260,0.771,2696.2,2696.1,0.76226]
[1729444065469,0.771,2696.2,2696.1,1.16866]
[1729444065768,0.771,2696.2,2696.1,0.7977]
[1729444065965,1.14394,2696.3,2696.1,0.7977]
[1729444066364,0.773,2696.3,2696.1,0.7977]
[1729444066563,0.773,2696.3,2696.1,1.16865]
[1729444067563,1.14393,2696.3,2696.1,1.16865]
[1729444067963,0.773,2696.3,2696.1,1.16865]
[1729444068567,1.14393,2696.3,2696.1,1.16865]
[1729444068770,0.773,2696.3,2696.1,1.16865]
[1729444068966,1.14393,2696.3,2696.1,0.7977]
[1729444071270,1.14393,2696.3,2696.1,1.16866]
[1729444071672,1.14393,2696.3,2696.1,0.7977]
[1729444071875,0.37093,2696.3,2696.1,1.16865]
[1729444072174,1.55233,2696.4,2696.1,1.16865]
[1729444072774,0.37093,2696.3,2696.1,1.16865]
[1729444073770,1.1814,2696.4,2696.1,0.7977]
[1729444073979,1.55232,2696.4,2696.2,0.37094]
[1729444074373,1.55232,2696.4,2696.1,1.16865]
[1729444076980,1.1814,2696.4,2696.1,1.16865]
[1729444077176,0.37093,2696.3,2696.1,1.16865]
[1729444077876,0.92902254,2696.7,2696.1,0.7977]
[1729444078081,0.37092,2696.5,2696.2,0.37094]
[1729444079181,1.1941,2696.6,2696.1,0.7977]
[1729444079376,0.37092,2696.4,2696.1,0.7977]
[1729444079576,0.37092,2696.4,2696.2,0.37094]
[1729444080376,0.3899,2696.5,2696.2,0.37094]
[1729444080576,0.37092,2696.4,2696.2,0.37094]
[1729444081185,0.773,2696.4,2696.3,0.37092]
[1729444081593,3.2078,2696.8,2696.1,0.7977]
[1729444081788,0.773,2696.6,2696.5,0.37089]
[1729444082084,0.773,2696.6,2696.3,3.2078]
[1729444082085,3.2078,2696.8,2696.7,0.37087]
[1729444082285,0.37082,2697.1,2696.6,3.2078]
[1729444082490,0.773,2697.2,2696.9,0.37084]
[1729444082691,1.14382,2697.2,2696.9,0.37084]
[1729444082986,0.37082,2697.1,2696.9,0.37084]
[1729444083191,0.37082,2697.1,2696.8,0.37085]
[1729444084305,1.14381,2697.2,2696.9,0.37084]
[1729444084507,0.37081,2697.2,2696.9,0.37084]
[1729444084708,1.14381,2697.2,2696.9,0.37084]
[1729444086810,0.773,2697.2,2696.9,0.37084]
[1729444087101,0.37082,2697.1,2696.9,0.37084]
[1729444087306,0.37082,2697.1,2696.7,0.4191]
[1729444087307,0.773,2697.2,2696.8,0.37085]
[1729444087505,3.68007093,2697.2,2696.7,0.4191]
[1729444087708,0.37082,2697.1,2696.8,0.37085]
[1729444088214,0.37082,2697.1,2696.9,0.37085]
[1729444088703,0.37082,2697.1,2696.8,0.37085]
[1729444089998,2.90707093,2697.2,2696.7,0.4191]
[1729444090199,0.37084,2697.0,2696.7,0.78997]
[1729444090903,0.389,2697.0,2696.7,0.4191]
[1729444091207,0.37086,2696.9,2696.7,0.4191]
[1729444091706,0.389,2697.0,2696.3,3.2078]
[1729444091903,0.389,2697.0,2696.4,0.37091]
[1729444091904,0.37088,2696.7,2696.4,0.37091]
[1729444092210,0.773,2696.8,2696.6,0.37088]
[1729444092411,0.773,2696.8,2696.7,0.3992]
[1729444092602,0.37086,2696.8,2696.7,0.3992]
[1729444093400,0.773,2696.9,2696.7,0.77007]
[1729444094511,1.14386,2696.9,2696.7,0.3992]
[1729444095607,0.37086,2696.8,2696.7,0.3992]
[1729444096409,0.773,2696.9,2696.7,0.3992]
[1729444096709,1.14386,2696.9,2696.7,0.3992]
[1729444099919,0.773,2696.9,2696.7,0.3992]
[1729444100118,0.37086,2696.8,2696.7,0.3992]
[1729444107022,0.54378121,2698.0,2696.8,0.37086]
[1729444107217,0.37075,2697.7,2697.3,0.37079]
[1729444107414,0.37075,2697.7,2697.2,3.2078]
[1729444107415,0.37075,2697.7,2697.4,1.54678]
[1729444107615,0.37075,2697.7,2697.4,1.176]
[1729444107814,0.37075,2697.7,2697.4,1.54678]
[1729444108123,0.37075,2697.7,2697.4,1.176]
[1729444109620,1.14174,2697.7,2697.4,1.54678]
[1729444109823,4.04881093,2697.7,2697.4,1.54678]
[1729444110016,4.04881093,2697.7,2697.4,1.176]
[1729444110318,4.04881093,2697.7,2697.4,1.54678]
[1729444110714,4.04881093,2697.7,2697.4,1.176]
[1729444111116,4.04881093,2697.7,2697.4,1.54678]
[1729444111318,1.14174,2697.7,2697.4,1.54678]
[1729444111522,4.04881093,2697.7,2697.4,1.54678]
[1729444112421,1.14174,2697.7,2697.4,1.54678]
[1729444114027,4.04881093,2697.7,2697.4,1.54678]
[1729444114229,1.14174,2697.7,2697.4,1.54678]
[1729444115328,1.14174,2697.7,2697.4,1.176]
[1729444115832,1.14174,2697.7,2697.4,1.54677]
[1729444116024,1.14174,2697.7,2697.4,1.176]
[1729444116327,1.14174,2697.7,2697.4,1.54678]
[1729444118433,0.37076,2697.6,2697.4,1.176]
[1729444118730,0.75466,2697.6,2697.4,1.176]
[1729444118930,0.3977,2697.5,2697.4,1.176]
[1729444119627,0.76846,2697.5,2697.4,1.176]
[1729444120025,0.3977,2697.5,2697.4,1.176]
[1729444121825,0.76846,2697.5,2697.4,0.3963]
[1729444123027,0.37079,2697.3,2696.9,0.7768]
[1729444123234,0.771,2697.2,2697.0,0.4154]
[1729444123434,0.4191,2697.1,2697.0,0.4154]
[1729444123634,0.78992,2697.1,2697.0,0.4154]
[1729444128838,0.78992,2697.1,2697.0,0.78623]
[1729444129026,0.4191,2697.1,2697.0,0.78623]
[1729444129231,2.90707093,2697.3,2697.0,0.4154]
[1729444129541,0.37081,2697.2,2697.1,0.37081]
[1729444129833,4.05787093,2697.3,2697.1,0.37081]
[1729444130442,0.37081,2697.2,2697.1,0.37081]
[1729444130740,4.05787093,2697.3,2697.1,0.37081]
[1729444131533,4.05787093,2697.3,2697.1,0.37082]
[1729444131833,1.1508,2697.3,2697.1,0.37082]
[1729444134041,0.78,2697.3,2697.0,0.4154]
[1729444134245,0.78,2697.3,2697.1,0.37082]
[1729444134433,1.1508,2697.3,2697.1,0.37082]
[1729444134734,0.78,2697.3,2697.0,0.4154]
[1729444134938,1.15079,2697.3,2697.1,0.37081]
[1729444136834,0.78,2697.3,2697.1,0.37081]
[1729444137340,1.1508,2697.3,2697.1,0.37081]
[1729444138035,1.15079,2697.3,2697.1,0.37081]
[1729444138934,4.05786093,2697.3,2697.1,0.37081]
[1729444139142,3.27786093,2697.3,2697.1,0.37081]
[1729444139341,2.90707093,2697.2,2697.1,0.37081]
[1729444140042,4.05786093,2697.3,2697.1,0.37081]
[1729444140641,2.90707093,2697.2,2697.1,0.37081]
[1729444140848,2.90707093,2697.2,2697.0,3.99402]
[1729444141038,2.90707093,2697.2,2697.1,0.37082]
[1729444141232,1.15079,2697.3,2697.1,0.37082]
[1729444141233,4.05786093,2697.3,2697.1,0.37082]
[1729444141541,2.90707093,2697.2,2697.1,0.37082]
[1729444143647,3.68707093,2697.2,2697.1,0.37082]
[1729444145448,2.90707093,2697.2,2697.1,0.37082]
[1729444145636,3.68707093,2697.3,2697.2,0.37081]
[1729444146739,3.68707093,2697.3,2697.0,3.6232]
[1729444146937,1.1508,2697.3,2697.1,0.37081]
[1729444147333,0.3923,2697.4,2697.0,3.6232]
[1729444147334,0.76308,2697.4,2697.2,0.37081]
[1729444147536,0.78,2697.3,2697.2,0.37081]
[1729444147834,1.15079,2697.3,2697.1,0.37081]
[1729444148741,0.78,2697.3,2697.2,0.37081]
[1729444148948,0.37075,2697.6,2697.3,0.37079]
[1729444149150,0.37078,2697.4,2697.2,0.3708]
[1729444150144,0.37078,2697.4,2697.1,0.97070857]
[1729444150145,0.37078,2697.4,2697.1,0.37081]
[1729444150347,0.37078,2697.4,2697.2,0.3708]
[1729444151950,0.78,2697.5,2697.2,0.3708]
[1729444152451,0.37078,2697.4,2697.2,0.3708]
[1729444154040,1.15077,2697.5,2697.2,0.3708]
[1729444154751,0.37078,2697.4,2697.2,0.3708]
[1729444155651,0.78,2697.5,2697.3,0.37079]
[1729444155652,1.15077,2697.5,2697.3,0.37079]
[1729444156048,0.78,2697.5,2697.2,0.3708]
[1729444156350,1.15077,2697.5,2697.0,4.17850857]
[1729444156753,1.15077,2697.5,2697.0,3.2078]
[1729444156945,0.78,2697.5,2697.2,0.3708]
[1729444157145,0.37078,2697.4,2697.2,0.3708]
[1729444157949,0.37078,2697.4,2697.0,3.2078]
[1729444157950,0.78,2697.5,2697.0,3.2078]
[1729444158145,0.78,2697.5,2697.2,0.37079]
[1729444158348,0.37078,2697.4,2697.1,0.37081]
[1729444159651,0.37078,2697.4,2697.1,0.37082]
[1729444160049,0.37078,2697.4,2697.0,3.2078]
[1729444160262,0.37079,2697.4,2697.0,3.2078]
[1729444160450,0.78,2697.5,2697.1,0.37082]
[1729444160755,0.3708,2697.3,2697.1,0.37082]
[1729444161659,0.37079,2697.4,2697.2,0.3708]
[1729444162047,3.39158276,2697.3,2697.2,0.3708]
[1729444162648,3.39158276,2697.3,2697.1,0.37081]
[1729444162649,3.76237276,2697.3,2697.1,0.37081]
[1729444162842,2.91063353,2697.2,2697.1,0.37081]
[1729444164354,0.37082,2697.1,2697.0,3.57863]
[1729444164546,3.28144353,2697.2,2697.0,3.2078]
[1729444164746,2.91063353,2697.1,2697.0,3.57862]
[1729444164948,3.28145353,2697.1,2697.0,3.57862]
[1729444165152,2.91063353,2697.1,2697.0,3.57862]
[1729444165954,2.91063353,2697.1,2697.0,0.37082]
[1729444166156,2.91063353,2697.1,2697.0,3.57862]
[1729444168151,3.28145353,2697.1,2697.0,4.04252503]
[1729444168347,3.28145353,2697.1,2697.0,3.57862]
[1729444168548,0.37082,2697.1,2697.0,3.57862]
[1729444168953,3.28161918,2697.1,2697.0,3.57862]
[1729444169154,0.37082,2697.1,2697.0,6.30495412]
[1729444169560,0.37082,2697.1,2697.0,6.76887348]
[1729444169957,0.37082,2697.1,2697.0,6.30495802]
[1729444170162,0.37082,2697.1,2697.0,3.09715802]
[1729444170453,0.37082,2697.1,2697.0,6.30495802]
[1729444171057,0.37082,2697.1,2697.0,2.72633802]
[1729444171254,0.92696,2697.4,2696.8,0.9733379]
[1729444171255,0.92705,2697.2,2696.8,0.9733379]
[1729444171559,0.92705,2697.2,2696.7,4.1811379]
[1729444171560,0.37086,2696.8,2696.7,4.1811379]
[1729444172066,0.37086,2696.8,2696.7,3.2078]